bitfinex/quotes_SOLUSD_20250622
["timestamp","ask_amount","ask_price","bid_price","bid_amount"]
[1750611937308,33.72,129.93,129.9,10.68482172]
[1750611937932,33.04,129.93,129.9,10.68482172]
[1750611938101,14.6378,129.96,129.92,10.68482172]
[1750611938426,59.04,129.95,129.92,18.9847425]
[1750611938732,59.72,129.95,129.92,18.9847425]
[1750611938917,0.68,129.94,129.9,18.9847425]
[1750611939433,0.68,129.94,129.91,18.9847425]
[1750611940230,59.04,129.95,129.91,18.9847425]
[1750611940408,59.72,129.95,129.91,18.9847425]
[1750611943900,7.68,129.96,129.93,18.9847425]
[1750611944101,33.02,129.96,129.93,18.9847425]
[1750611944333,33.7,129.96,129.93,18.9847425]
[1750611944541,33.02,129.96,129.93,18.9847425]
[1750611944710,26.0,129.97,129.93,18.9847425]
[1750611944906,33.7,129.97,129.93,18.9847425]
[1750611945111,0.68,129.95,129.92,18.9847425]
[1750611945326,0.68,129.94,129.9,18.9847425]
[1750611945532,19.6647425,129.94,129.9,18.9847425]
[1750611945733,52.6847425,129.94,129.9,18.9847425]
[1750611946102,33.7,129.94,129.9,18.9847425]
[1750611946328,52.6847425,129.94,129.9,18.9847425]
[1750611947107,33.7,129.94,129.9,18.9847425]
[1750611948322,18.9847425,129.92,129.87,1.6624]
[1750611948524,0.68,129.91,129.87,20.6471425]
[1750611948719,0.68,129.91,129.87,1.6624]
[1750611948921,0.68,129.91,129.87,20.6471425]
[1750611949130,33.02,129.92,129.89,18.9847425]
[1750611949444,0.68,129.93,129.9,18.9847425]
[1750611951235,207.8,129.94,129.91,18.9847425]
[1750611951633,226.7847425,129.94,129.88,0.71]
[1750611951823,0.68,129.93,129.9,18.9847425]
[1750611952119,0.68,129.93,129.89,18.9847425]
[1750611952932,0.68,129.93,129.88,0.71]
[1750611952933,0.68,129.93,129.9,18.9847425]
[1750611954020,226.1047425,129.94,129.89,18.9847425]
[1750611954227,18.9847425,129.93,129.89,18.9847425]
[1750611954422,0.72,129.91,129.87,20.6471425]
[1750611954617,33.0,129.92,129.89,18.9847425]
[1750611954821,148.1,129.94,129.91,18.9847425]
[1750611955140,6.5837,130.01,129.95,0.7]
[1750611955312,33.0,130.01,129.99,18.9847425]
[1750611955517,7.68,130.03,130.0,18.9847425]
[1750611955731,33.0,130.03,130.0,18.9847425]
[1750611956049,59.0,130.03,130.0,18.9847425]
[1750611956236,0.72,130.02,129.96,0.7]
[1750611956440,25.5684425,130.04,130.0,18.9847425]
[1750611956743,33.0,130.03,130.01,18.9847425]
[1750611956936,0.72,130.04,130.01,18.9847425]
[1750611956937,26.72,130.04,130.01,18.9847425]
[1750611957140,59.72,130.04,130.01,18.9847425]
[1750611957324,33.0,130.04,130.01,18.9847425]
[1750611957521,148.1,130.05,130.02,18.9847425]
[1750611957740,59.0,130.05,130.02,18.9847425]
[1750611957929,77.9847425,130.05,130.01,18.9847425]
[1750611958121,59.72,130.05,130.01,18.9847425]
[1750611958451,32.89334886,130.08,130.03,18.9847425]
[1750611958452,18.9847425,130.07,130.03,18.9847425]
[1750611958650,33.72,130.07,130.04,18.9847425]
[1750611958817,33.72,130.06,130.02,18.9847425]
[1750611959026,33.72,130.06,129.99,26.7]
[1750611959027,52.7047425,130.06,129.99,0.7]
[1750611959227,0.72,130.05,130.01,18.9847425]
[1750611959643,45.7047425,130.03,129.96,32.2417]
[1750611959942,33.0,130.02,129.99,18.9847425]
[1750611960142,59.0,130.02,129.99,18.9847425]
[1750611960537,19.7047425,130.01,129.97,18.9847425]
[1750611960737,19.7047425,129.99,129.95,18.9847425]
[1750611960948,19.2047425,129.99,129.95,18.9847425]
[1750611961134,51.9847425,130.0,129.96,18.9847425]
[1750611961529,51.9847425,130.0,129.93,6.5473]
[1750611961530,18.9847425,129.97,129.93,18.9847425]
[1750611961720,32.98,129.97,129.93,18.9847425]
[1750611961919,32.98,129.97,129.94,18.9847425]
[1750611962136,32.98,129.97,129.93,18.9847425]
[1750611962829,32.98,129.97,129.9,8.7849]
[1750611962830,18.9847425,129.96,129.92,18.9847425]
[1750611963029,32.98,129.97,129.91,0.7]
[1750611963233,32.98,129.97,129.94,18.9847425]
[1750611964138,193.0847425,129.99,129.95,18.9847425]
[1750611964139,32.98,129.98,129.95,18.9847425]
[1750611964732,33.7,129.98,129.94,18.9847425]
[1750611965046,32.98,129.98,129.94,18.9847425]
[1750611965248,51.9647425,129.98,129.94,18.9847425]
[1750611965448,51.9647425,129.98,129.93,18.9847425]
[1750611965651,52.6847425,129.98,129.93,18.9847425]
[1750611966154,32.98,129.98,129.94,19.6847425]
[1750611966539,51.9647425,129.98,129.93,18.9847425]
[1750611967231,18.9847425,129.97,129.93,18.9847425]
[1750611967722,33.7,129.98,129.94,18.9847425]
[1750611967927,52.6847425,129.98,129.94,18.9847425]
[1750611968142,51.9647425,129.98,129.94,18.9847425]
[1750611969456,51.9647425,129.98,129.93,18.9847425]
[1750611969952,51.9647425,129.98,129.94,18.9847425]
[1750611971083,148.1,129.99,129.96,18.9847425]
[1750611971231,148.1,129.99,129.97,18.9847425]
[1750611972142,148.1,129.99,129.9,8.0849]
[1750611972345,18.9847425,129.97,129.93,18.9847425]
[1750611972552,18.9847425,129.97,129.92,18.9847425]
[1750611972757,52.6847425,129.97,129.92,18.9847425]
[1750611973257,18.9847425,129.96,129.92,18.9847425]
[1750611973556,52.6847425,129.97,129.92,19.6847425]
[1750611974441,18.9847425,129.96,129.92,19.6847425]
[1750611974845,33.7,129.97,129.92,19.6847425]
[1750611975149,32.98,129.97,129.92,19.6847425]
[1750611975346,51.9647425,129.97,129.92,19.6847425]
[1750611976051,52.6847425,129.97,129.92,19.6847425]
[1750611976860,26.0,129.93,129.91,18.9847425]
[1750611977069,26.0,129.93,129.89,18.9847425]
[1750611977274,26.0,129.93,129.89,0.7]
[1750611977571,26.0,129.93,129.9,18.9847425]
[1750611977957,26.0,129.93,129.89,19.6847425]
[1750611978267,26.0,129.93,129.9,10.68213978]
[1750611978454,26.0,129.93,129.9,0.7]
[1750611978643,26.0,129.93,129.91,10.68213978]
[1750611978843,26.0,129.93,129.9,10.68213978]
[1750611979066,26.0,129.93,129.89,10.68213978]
[1750611979239,26.0,129.93,129.9,10.68213978]
[1750611979640,26.0,129.93,129.91,10.68213978]
[1750611980445,26.0,129.93,129.9,10.68213978]
[1750611981891,36.68213978,129.93,129.89,10.68213978]
[1750611983599,10.68213978,129.92,129.88,7.66]
[1750611983889,148.1,129.94,129.91,10.68213978]
[1750611984081,148.1,129.94,129.9,10.68213978]
[1750611984082,159.50213978,129.94,129.9,10.68213978]
[1750611986289,159.50213978,129.94,129.89,10.68213978]
[1750611986496,159.50213978,129.94,129.9,10.68213978]
[1750611987191,10.68213978,129.93,129.89,10.68213978]
[1750611987485,11.40213978,129.93,129.89,10.68213978]
[1750611988282,148.1,129.94,129.9,11.43213978]
[1750611988483,148.1,129.94,129.91,10.68213978]
[1750611990791,148.1,129.94,129.88,7.66]
[1750611990792,26.0,129.91,129.88,7.66]
[1750611991021,11.40213978,129.91,129.86,1.5033]
[1750611991175,0.72,129.9,129.87,10.68213978]
[1750611991380,0.72,129.9,129.86,1.5033]
[1750611991596,0.72,129.9,129.87,10.68213978]
[1750611991906,32.96,129.91,129.88,10.68213978]
[1750611992917,8.36,129.96,129.9,10.68213978]
[1750611993208,8.36,129.96,129.86,1.5033]
[1750611993209,26.0,129.93,129.92,10.68213978]
[1750611993621,52.00213978,129.96,129.92,10.68213978]
[1750611993776,26.0,129.94,129.92,10.68213978]
[1750611993974,26.0,129.94,129.91,10.68213978]
[1750611995894,26.72,129.94,129.91,10.68213978]
[1750611996098,154.2673,129.97,129.91,10.68213978]
[1750611996276,187.2273,129.97,129.93,10.68213978]
[1750611996471,26.0,129.95,129.94,10.68213978]
[1750611997304,10.68213978,129.99,129.94,11.43213978]
[1750611997480,0.72,130.01,129.98,10.68213978]
[1750611997800,26.0,129.99,129.98,10.68213978]
[1750611998096,44.36213978,130.02,129.98,10.68213978]
[1750611998288,26.0,129.99,129.98,10.68213978]
[1750611998493,26.0,129.97,129.93,2.2676]
[1750611998692,26.0,129.97,129.94,10.68213978]
[1750611999183,26.0,129.96,129.92,10.68213978]
[1750611999777,26.72,129.96,129.91,0.75]
[1750611999984,26.0,129.96,129.93,10.68213978]
[1750612001074,0.72,129.99,129.95,10.68213978]
[1750612001280,181.04,130.0,129.97,10.68213978]
[1750612001594,181.04,130.0,129.94,0.75]
[1750612001785,44.34213978,130.02,129.98,10.68213978]
[1750612001974,26.0,129.99,129.98,10.68213978]
[1750612003075,10.68213978,130.02,129.98,10.68213978]
[1750612003282,43.62213978,130.03,129.99,10.68213978]
[1750612003592,26.0,130.0,129.99,10.68213978]
[1750612004219,14.0582,130.04,129.99,10.68213978]
[1750612004420,14.0582,130.04,129.96,12.19973978]
[1750612004421,72.9982,130.04,130.01,10.68213978]
[1750612004628,32.94,130.04,130.01,10.68213978]
[1750612004842,192.44213978,130.05,130.01,10.68213978]
[1750612004994,148.82,130.05,130.02,10.68213978]
[1750612005196,148.82,130.05,130.01,10.68213978]
[1750612005620,148.1,130.05,130.02,10.68213978]
[1750612006306,148.1,130.05,130.03,10.68213978]
[1750612006809,148.1,130.05,130.04,10.68213978]
[1750612007713,148.1,130.05,130.03,10.68213978]
[1750612008100,148.1,130.05,130.02,10.68213978]
[1750612008428,148.1,130.05,130.02,18.95686335]
[1750612008735,167.77686335,130.05,129.98,18.64964886]
[1750612008905,167.77686335,130.05,130.0,18.95686335]
[1750612009212,18.95686335,130.03,129.99,18.95686335]
[1750612009740,26.0,130.01,129.97,18.95686335]
[1750612010031,44.95686335,130.01,129.97,18.95686335]
[1750612010191,44.95686335,130.01,129.96,112.96824347]
[1750612010192,18.95686335,130.0,129.96,112.96824347]
[1750612010397,26.0,130.01,129.96,131.92510682]
[1750612010634,45.67686335,130.01,129.96,131.92510682]
[1750612010829,18.95686335,130.0,129.96,131.92510682]
[1750612012111,45.67686335,130.01,129.97,18.95686335]
[1750612012416,26.0,130.01,129.98,18.95686335]
[1750612014221,32.92,130.02,129.99,18.95686335]
[1750612014424,26.0,130.03,130.0,18.95686335]
[1750612014631,32.92,130.04,130.01,18.95686335]
[1750612015006,25.78626335,130.07,130.03,18.95686335]
[1750612015215,39.7494,130.07,130.03,18.95686335]
[1750612015407,84.70626335,130.07,130.03,18.95686335]
[1750612015607,65.0594,130.07,130.03,18.95686335]
[1750612015917,175.38686335,130.09,130.05,18.95686335]
[1750612016112,208.30686335,130.09,130.05,18.95686335]
[1750612016316,26.0,130.08,130.05,18.95686335]
[1750612017099,167.05686335,130.09,130.05,18.95686335]
[1750612017299,193.74686335,130.09,130.05,18.95686335]
[1750612017714,174.79,130.09,130.05,18.95686335]
[1750612018133,174.1,130.09,130.06,18.95686335]
[1750612018434,18.95686335,130.08,130.04,18.95686335]
[1750612019244,19.64686335,130.08,130.04,18.95686335]
[1750612019425,19.64686335,130.08,130.03,18.95686335]
[1750612019426,19.64686335,130.07,130.03,18.95686335]
[1750612020239,18.95686335,130.07,130.03,18.95686335]
[1750612020422,0.69,130.06,130.02,18.95686335]
[1750612020938,19.64686335,130.03,129.98,20.49986335]
[1750612021111,26.0,130.04,129.97,112.96824347]
[1750612021112,0.69,130.01,129.97,131.92510682]
[1750612021437,18.95686335,129.98,129.97,112.96824347]
[1750612021613,19.64686335,129.98,129.97,112.96824347]
[1750612021815,70.74681221,129.98,129.97,112.96824347]
[1750612022026,26.0,129.95,129.9,18.95686335]
[1750612022242,18.95686335,129.94,129.89,18.95686335]
[1750612022537,18.95686335,129.94,129.9,18.95686335]
[1750612022723,26.0,129.97,129.92,18.95686335]
[1750612022927,77.85686335,129.97,129.93,18.95686335]
[1750612023314,0.69,129.99,129.95,18.95686335]
[1750612023611,18.95686335,129.99,129.94,18.95686335]
[1750612023834,18.95686335,129.98,129.94,18.95686335]
[1750612024542,51.85686335,130.0,129.96,18.95686335]
[1750612024748,51.85686335,130.0,129.93,18.64964886]
[1750612024749,51.85686335,130.0,129.95,18.95686335]
[1750612025041,51.85686335,130.0,129.93,18.64964886]
[1750612025339,51.85686335,130.0,129.95,18.95686335]
[1750612026533,18.95686335,129.99,129.95,18.95686335]
[1750612026738,51.85686335,130.0,129.95,18.95686335]
[1750612027251,52.54686335,130.0,129.95,18.95686335]
[1750612027623,52.54686335,130.0,129.96,18.95686335]
[1750612027624,32.9,130.0,129.96,18.95686335]
[1750612027819,174.1,130.01,129.98,18.95686335]
[1750612028130,7.62,130.03,130.0,18.95686335]
[1750612028319,206.50946335,130.05,130.0,18.95686335]
[1750612028518,26.0,130.04,130.0,18.95686335]
[1750612028719,207.19946335,130.05,130.0,18.95686335]
[1750612029040,18.95686335,130.02,129.98,18.95686335]
[1750612029243,19.64686335,130.02,129.97,18.95686335]
[1750612029931,19.64686335,130.02,129.98,18.95686335]
[1750612030336,0.69,130.02,129.97,18.95686335]
[1750612030630,19.64686335,130.02,129.98,18.95686335]
[1750612033847,58.9,130.03,130.0,18.95686335]
[1750612034152,199.93686335,130.05,130.01,18.95686335]
[1750612034335,148.1,130.05,130.01,18.95686335]
[1750612034532,148.1,130.05,129.98,0.74]
[1750612034533,193.74686335,130.05,130.0,18.95686335]
[1750612034731,18.95686335,130.04,130.0,18.95686335]
[1750612035839,193.74686335,130.05,130.0,18.95686335]
[1750612039256,148.1,130.05,130.03,18.95686335]
[1750612039457,148.1,130.05,130.04,18.95686335]
[1750612039982,51.83686335,130.09,130.04,18.95686335]
[1750612040159,51.83686335,130.09,130.01,2.4023]
[1750612040160,0.69,130.08,130.01,2.4023]
[1750612040359,32.88,130.09,130.01,2.4023]
[1750612040360,180.98,130.07,130.02,18.95686335]
[1750612040556,148.1,130.07,130.04,18.95686335]
[1750612040762,148.1,130.07,130.05,18.95686335]
[1750612041352,148.1,130.07,130.04,18.95686335]
[1750612041556,18.95686335,130.05,130.01,1.6623]
[1750612041768,19.64686335,130.06,130.01,20.61916335]
[1750612044675,148.1,130.07,130.02,18.95686335]
[1750612044879,148.1,130.07,130.03,18.95686335]
[1750612045387,148.1,130.07,130.04,18.95686335]
[1750612045776,0.71,130.09,130.05,18.95686335]
[1750612046085,19.66686335,130.09,130.05,18.95686335]
[1750612047558,18.95686335,130.1,130.06,18.95686335]
[1750612047771,148.1,130.11,130.07,18.95686335]
[1750612048379,148.1,130.11,130.08,18.95686335]
[1750612048769,148.1,130.11,130.06,26.74]
[1750612049083,148.1,130.11,130.07,18.95686335]
[1750612050181,148.1,130.11,130.03,23.3135214]
[1750612050182,167.76686335,130.11,130.03,23.3135214]
[1750612050361,167.76686335,130.11,130.05,18.95686335]
[1750612050362,18.95686335,130.1,130.05,18.95686335]
[1750612050677,19.66686335,130.09,130.05,18.95686335]
[1750612050876,0.71,130.12,130.06,37.60651221]
[1750612051066,52.50686335,130.12,130.07,18.95686335]
[1750612051468,174.1,130.14,130.04,44.64964886]
[1750612051469,174.1,130.14,130.08,0.74]
[1750612051676,226.60686335,130.14,130.1,18.95686335]
[1750612051882,200.60686335,130.14,130.09,18.95686335]
[1750612052080,200.60686335,130.14,130.1,18.95686335]
[1750612052287,167.76686335,130.14,130.1,18.95686335]
[1750612052884,167.76686335,130.14,130.09,18.95686335]
[1750612053792,167.76686335,130.14,130.06,18.64964886]
[1750612053793,0.71,130.1,130.06,26.0]
[1750612054008,18.95686335,130.09,130.05,18.95686335]
[1750612054185,18.95686335,130.07,130.03,18.95686335]
[1750612054500,19.66686335,130.08,130.04,18.95686335]
[1750612054691,32.84,130.09,130.06,18.95686335]
[1750612054892,33.55,130.11,130.07,18.95686335]
[1750612055072,52.50686335,130.11,130.07,18.95686335]
[1750612055591,174.1,130.14,130.07,18.95686335]
[1750612055592,32.84,130.13,130.08,18.95686335]
[1750612055768,32.84,130.13,130.01,11.5362]
[1750612055769,33.55,130.13,130.06,26.74]
[1750612055973,52.50686335,130.13,130.09,18.95686335]
[1750612056201,148.1,130.14,130.1,18.95686335]
[1750612056202,18.95686335,130.14,130.1,18.95686335]
[1750612057304,25.06146335,130.15,130.11,18.95686335]
[1750612057594,58.61146335,130.15,130.11,18.95686335]
[1750612058072,18.95686335,130.14,130.1,18.95686335]
[1750612058272,19.66686335,130.14,130.1,18.95686335]
[1750612059910,0.71,130.14,130.09,18.95686335]
[1750612060074,18.95686335,130.13,130.09,18.95686335]
[1750612060492,19.66686335,130.14,130.1,18.95686335]
[1750612062375,13.13550581,130.14,130.09,12.42550581]
[1750612063209,12.42550581,130.12,130.07,1.5854]
[1750612063498,12.42550581,130.12,130.08,12.42550581]
[1750612063680,6.1046,130.15,130.1,13.16550581]
[1750612063875,52.06010581,130.15,130.1,12.42550581]
[1750612064200,19.24010581,130.15,130.1,12.42550581]
[1750612064572,6.8146,130.15,130.1,0.74]
[1750612064776,13.13550581,130.15,130.11,12.42550581]
[1750612066490,13.13550581,130.15,130.1,12.42550581]
[1750612066680,12.42550581,130.14,130.1,12.42550581]
[1750612067301,13.13550581,130.14,130.1,12.42550581]
[1750612067600,0.71,130.14,130.1,12.42550581]
[1750612067774,12.42550581,130.16,130.11,13.16550581]
[1750612067976,12.42550581,130.16,130.12,12.42550581]
[1750612068191,13.13550581,130.16,130.11,13.16550581]
[1750612068502,12.42550581,130.15,130.11,13.16550581]
[1750612069803,12.42550581,130.15,130.11,12.42550581]
[1750612071305,12.42550581,130.15,130.09,0.74]
[1750612071487,12.42550581,130.14,130.1,38.42550581]
[1750612071692,13.13550581,130.11,130.06,0.74]
[1750612071877,12.42550581,130.1,130.06,12.42550581]
[1750612072084,12.42550581,130.1,130.06,38.42550581]
[1750612072411,13.11550581,130.11,130.06,38.42550581]
[1750612072608,13.11550581,130.11,130.07,12.42550581]
[1750612073204,13.11550581,130.11,130.06,26.0]
[1750612073411,13.11550581,130.11,130.07,12.42550581]
[1750612073711,0.69,130.11,130.07,12.42550581]
[1750612073906,13.11550581,130.11,130.07,12.42550581]
[1750612074405,12.42550581,130.12,130.08,12.42550581]
[1750612074708,12.42550581,130.13,130.09,12.42550581]
[1750612074890,0.69,130.14,130.1,12.42550581]
[1750612075105,13.11550581,130.14,130.07,0.72]
[1750612075304,12.42550581,130.13,130.09,12.42550581]
[1750612076517,13.11550581,130.14,130.1,12.42550581]
[1750612076690,12.42550581,130.14,130.08,0.72]
[1750612076890,50.93885936,130.15,130.1,12.42550581]
[1750612077120,51.62885936,130.15,130.1,12.42550581]
[1750612077801,13.11550581,130.14,130.1,12.42550581]
[1750612078122,13.11550581,130.13,130.09,12.42550581]
[1750612078787,12.42550581,130.13,130.09,12.42550581]
[1750612079012,18.13885936,130.14,130.1,12.42550581]
[1750612079292,18.82885936,130.14,130.1,12.42550581]
[1750612079816,12.42550581,130.13,130.09,12.42550581]
[1750612080191,5.71335355,130.14,130.13,26.0]
[1750612080389,148.1,130.16,130.13,26.0]
[1750612080597,148.1,130.16,130.13,38.42550581]
[1750612080798,161.21550581,130.16,130.13,26.0]
[1750612081735,148.1,130.16,130.15,12.42550581]
[1750612082028,148.1,130.16,130.14,26.0]
[1750612084128,161.21550581,130.16,130.14,26.0]
[1750612084308,13.11550581,130.15,130.14,26.0]
[1750612084497,13.11550581,130.15,130.1,18.64964886]
[1750612084498,12.42550581,130.15,130.1,18.64964886]
[1750612084703,12.42550581,130.14,130.13,26.0]
[1750612084902,12.42550581,130.15,130.13,26.0]
[1750612085844,12.42550581,130.14,130.1,12.42550581]
[1750612086028,12.42550581,130.15,130.11,12.42550581]
[1750612086331,148.1,130.16,130.14,26.0]
[1750612086530,12.42550581,130.17,130.14,26.0]
[1750612086745,12.42550581,130.16,130.11,0.72]
[1750612086906,12.42550581,130.16,130.12,12.42550581]
[1750612087112,12.42550581,130.17,130.13,12.42550581]
[1750612088230,5.73601621,130.18,130.1,44.64964886]
[1750612088427,12.42550581,130.18,130.14,12.42550581]
[1750612088943,13.11550581,130.18,130.14,12.42550581]
[1750612091111,0.69,130.18,130.15,12.42550581]
[1750612091418,148.1,130.2,130.17,12.42550581]
[1750612091628,52.21780581,130.21,130.17,12.42550581]
[1750612091830,12.42550581,130.2,130.16,12.42550581]
[1750612092006,52.21780581,130.21,130.16,12.42550581]
[1750612092205,19.43780581,130.21,130.16,12.42550581]
[1750612092837,19.43780581,130.21,130.17,12.42550581]
[1750612093617,12.42550581,130.21,130.17,12.42550581]
[1750612093817,12.42550581,130.22,130.18,12.42550581]
[1750612094018,0.69,130.21,130.17,12.42550581]
[1750612094334,0.69,130.21,130.14,26.0]
[1750612094335,13.11550581,130.18,130.14,12.42550581]
[1750612094533,12.42550581,130.17,130.13,12.42550581]
[1750612095143,13.11550581,130.17,130.13,12.42550581]
[1750612095727,13.11550581,130.17,130.12,2.3329]
[1750612096036,13.11550581,130.17,130.13,12.42550581]
[1750612096541,12.42550581,130.18,130.14,12.42550581]
[1750612097039,12.42550581,130.19,130.14,12.47550581]
[1750612097239,13.11550581,130.19,130.14,12.47550581]
[1750612097622,0.69,130.18,130.14,12.42550581]
[1750612098242,19.61001843,130.18,130.14,18.92001843]
[1750612098433,0.69,130.19,130.15,18.92001843]
[1750612098634,19.61001843,130.19,130.15,18.92001843]
[1750612098834,164.19427616,130.24,130.18,18.92001843]
[1750612099140,18.92001843,130.23,130.18,18.92001843]
[1750612099458,19.61001843,130.23,130.18,18.92001843]
[1750612099619,18.92001843,130.22,130.18,18.92001843]
[1750612099950,19.61001843,130.22,130.17,18.92001843]
[1750612100261,196.26427616,130.24,130.17,18.92001843]
[1750612100262,19.61001843,130.21,130.17,18.92001843]
[1750612100540,18.92001843,130.22,130.17,18.92001843]
[1750612100753,0.69,130.23,130.19,18.92001843]
[1750612100922,7.17277551,130.31,130.23,0.72]
[1750612101111,5.7254488,130.31,130.28,18.92001843]
[1750612101311,18.92001843,130.31,130.27,18.92001843]
[1750612101726,18.92001843,130.3,130.26,18.92001843]
[1750612103138,18.92001843,130.29,130.25,20.48851843]
[1750612103324,19.62001843,130.29,130.25,20.48851843]
[1750612103529,18.92001843,130.29,130.25,20.48851843]
[1750612104141,18.92001843,130.28,130.25,1.5685]
[1750612104528,45.62001843,130.29,130.25,1.5685]
[1750612104735,44.92001843,130.29,130.25,21.20851843]
[1750612104926,51.66001843,130.32,130.28,18.92001843]
[1750612105322,18.92001843,130.31,130.27,19.64001843]
[1750612106125,0.7,130.32,130.26,18.92001843]
[1750612106329,18.92001843,130.3,130.26,18.92001843]
[1750612106539,0.7,130.32,130.26,19.64001843]
[1750612106746,18.92001843,130.3,130.26,19.64001843]
[1750612108035,18.92001843,130.32,130.28,19.64001843]
[1750612108225,148.1,130.36,130.32,2.3285]
[1750612108541,44.92001843,130.37,130.32,21.24851843]
[1750612108839,18.92001843,130.36,130.32,21.24851843]
[1750612109239,1.6831228,130.39,130.32,1.6085]
[1750612109446,20.60314123,130.39,130.35,18.92001843]
[1750612109740,1.6831228,130.39,130.35,18.92001843]
[1750612109941,1.6831228,130.39,130.35,0.72]
[1750612110141,1.6831228,130.39,130.34,18.92001843]
[1750612110326,18.92001843,130.38,130.34,18.92001843]
[1750612110528,18.92001843,130.36,130.32,1.6085]
[1750612110736,0.7,130.37,130.32,1.6085]
[1750612110935,18.92001843,130.35,130.32,1.6085]
[1750612111135,18.92001843,130.34,130.32,1.6085]
[1750612111333,18.92001843,130.34,130.3,25.58141843]
[1750612112643,0.7,130.37,130.31,18.92001843]
[1750612112831,18.92001843,130.37,130.33,18.92001843]
[1750612113149,77.66001843,130.38,130.34,18.92001843]
[1750612113346,18.92001843,130.37,130.33,19.64001843]
[1750612114030,77.66001843,130.38,130.34,18.92001843]
[1750612114248,1.6831228,130.39,130.36,18.92001843]
[1750612114622,1.1831228,130.39,130.38,44.57236729]
[1750612114945,0.1831228,130.39,130.38,24.93234886]
[1750612115134,0.1831228,130.39,130.38,43.85236729]
[1750612116265,26.0,130.45,130.39,18.64964886]
[1750612116448,26.0,130.45,130.43,18.92001843]
[1750612116967,20.62001843,130.47,130.43,18.92001843]
[1750612117260,19.62001843,130.46,130.39,22.44319105]
[1750612117430,0.7,130.45,130.42,18.92001843]
[1750612117635,0.7,130.45,130.41,18.92001843]
[1750612117836,0.7,130.45,130.42,18.92001843]
[1750612118462,19.62001843,130.46,130.42,18.92001843]
[1750612118966,0.7,130.45,130.41,18.92001843]
[1750612119254,0.7,130.45,130.39,18.64964886]
[1750612119467,0.7,130.45,130.42,18.92001843]
[1750612119956,18.92001843,130.46,130.42,18.92001843]
[1750612120157,19.62001843,130.46,130.42,18.92001843]
[1750612120564,18.92001843,130.45,130.39,18.64964886]
[1750612120723,19.62001843,130.44,130.4,18.92001843]
[1750612120928,18.92001843,130.46,130.41,18.92001843]
[1750612121231,1.0,130.47,130.43,18.92001843]
[1750612121429,1.0,130.47,130.45,18.92001843]
[1750612121931,1.0,130.47,130.46,18.92001843]
[1750612122627,1.0,130.47,130.45,18.92001843]
[1750612123636,1.0,130.47,130.46,18.92001843]
[1750612124035,0.7,130.56,130.47,18.64964886]
[1750612124347,45.62001843,130.54,130.5,18.92001843]
[1750612124552,19.62001843,130.54,130.5,18.92001843]
[1750612124939,45.62001843,130.54,130.5,18.92001843]
[1750612125133,180.78,130.57,130.51,18.92001843]
[1750612125134,148.8,130.57,130.51,18.92001843]
[1750612125336,18.92001843,130.55,130.48,1.5384]
[1750612125540,18.92001843,130.51,130.46,6.2057]
[1750612125739,18.92001843,130.49,130.45,18.92001843]
[1750612126153,0.7,130.5,130.46,18.92001843]
[1750612126332,18.92001843,130.51,130.47,18.92001843]
[1750612127032,0.7,130.51,130.47,18.92001843]
[1750612127350,19.62001843,130.51,130.47,18.92001843]
[1750612127547,18.92001843,130.5,130.46,18.92001843]
[1750612127951,19.62001843,130.48,130.44,1.5384]
[1750612128656,18.81098024,130.48,130.44,1.5384]
[1750612129028,18.92001843,130.48,130.44,1.5384]
[1750612129254,32.66,130.51,130.44,1.5384]
[1750612129433,18.92001843,130.48,130.44,1.5384]
[1750612129852,18.92001843,130.48,130.44,20.45841843]
[1750612130050,18.92001843,130.5,130.45,18.92001843]
[1750612130250,7.52,130.54,130.48,18.92001843]
[1750612130556,18.92001843,130.53,130.45,44.64964886]
[1750612130759,18.92001843,130.53,130.49,18.92001843]
[1750612131239,0.7,130.56,130.5,18.92001843]
[1750612131554,18.92001843,130.54,130.5,18.92001843]
[1750612132056,0.7,130.56,130.5,18.92001843]
[1750612132351,18.92001843,130.55,130.5,18.92001843]
[1750612132554,18.92001843,130.57,130.52,18.92001843]
[1750612132738,18.92001843,130.56,130.48,18.67964886]
[1750612132944,18.92001843,130.56,130.52,18.92001843]
[1750612134049,18.92001843,130.55,130.48,18.67964886]
[1750612134250,18.92001843,130.55,130.51,18.92001843]